[Event "Titled Tuesday Blitz August 22 Late 2023"]
[White "Mr_November18"]
[Black "Biregina"]
[WhiteElo "1956"]
[BlackElo "2420"]
[Result "1-0"]
[Round "2"]
[TimeControl "180+1"]
[Date "2023.08.22"]
[WhiteClock "0:00:17"]
[BlackClock "0:00:00"]
[Board "223"]

1. e4 {[%clk 0:03:00]}  d6 {[%clk 0:02:56]} 2. d4 {[%clk 0:03:00]}  Nf6 {[%clk 0:02:56]} 3. Nc3 {[%clk 0:03:00]}  e5 {[%clk 0:02:57]} 4. Be3 {[%clk 0:02:59]}  exd4 {[%clk 0:02:55]} 5. Bxd4 {[%clk 0:02:59]}  Nc6 {[%clk 0:02:55]} 6. Be3 {[%clk 0:02:58]}  Be7 {[%clk 0:02:50]} 7. Qd2 {[%clk 0:02:57]}  O-O {[%clk 0:02:49]} 8. f3 {[%clk 0:02:57]}  Be6 {[%clk 0:02:44]} 9. O-O-O {[%clk 0:02:53]}  a6 {[%clk 0:02:37]} 10. Nge2 {[%clk 0:02:52]}  b5 {[%clk 0:02:32]} 11. Nf4 {[%clk 0:02:51]}  Ne5 {[%clk 0:02:22]} 12. Ncd5 {[%clk 0:02:49]}  Bxd5 {[%clk 0:02:19]} 13. Nxd5 {[%clk 0:02:47]}  Nxd5 {[%clk 0:02:18]} 14. Qxd5 {[%clk 0:02:44]}  c6 {[%clk 0:02:18]} 15. Qd2 {[%clk 0:02:43]}  Rb8 {[%clk 0:02:10]} 16. Be2 {[%clk 0:02:32]}  Qc7 {[%clk 0:01:59]} 17. b3 {[%clk 0:02:24]}  d5 {[%clk 0:01:01]} 18. exd5 {[%clk 0:02:10]}  cxd5 {[%clk 0:00:55]} 19. Bd4 {[%clk 0:02:08]}  Bf6 {[%clk 0:00:41]} 20. Qc3 {[%clk 0:01:45]}  Qe7 {[%clk 0:00:08]} 21. Qb2 {[%clk 0:01:35]}  Rfc8 {[%clk 0:00:05]} 22. Kb1 {[%clk 0:01:33]}  Qd7 {[%clk 0:00:02]} 23. Bxe5 {[%clk 0:01:29]}  Bxe5 {[%clk 0:00:02]} 24. Qxe5 {[%clk 0:01:28]}  Re8 {[%clk 0:00:03]} 25. Qd4 {[%clk 0:01:24]}  Rxe2 {[%clk 0:00:01]} 26. Qxd5 {[%clk 0:01:23]}  Qe8 {[%clk 0:00:02]} 27. Rd2 {[%clk 0:01:17]}  Rc8 {[%clk 0:00:01]} 28. Rhd1 {[%clk 0:01:13]}  Rxd2 {[%clk 0:00:01]} 29. Qxd2 {[%clk 0:01:12]}  Qf8 {[%clk 0:00:02]} 30. Kb2 {[%clk 0:01:11]}  h6 {[%clk 0:00:03]} 31. Qd6 {[%clk 0:01:10]}  Qe8 {[%clk 0:00:03]} 32. Qd7 {[%clk 0:01:08]}  Qf8 {[%clk 0:00:03]} 33. Rd2 {[%clk 0:01:07]}  Qc5 {[%clk 0:00:03]} 34. Qd3 {[%clk 0:01:04]}  Qc6 {[%clk 0:00:03]} 35. c3 {[%clk 0:01:03]}  a5 {[%clk 0:00:03]} 36. a3 {[%clk 0:01:01]}  a4 {[%clk 0:00:03]} 37. b4 {[%clk 0:00:59]}  Qe6 {[%clk 0:00:04]} 38. Qd5 {[%clk 0:00:58]}  Qe3 {[%clk 0:00:04]} 39. Qd3 {[%clk 0:00:57]}  Qe6 {[%clk 0:00:04]} 40. Qc2 {[%clk 0:00:53]}  Qc4 {[%clk 0:00:04]} 41. Rd4 {[%clk 0:00:51]}  Qf1 {[%clk 0:00:04]} 42. Rd1 {[%clk 0:00:51]}  Qc4 {[%clk 0:00:03]} 43. Rd4 {[%clk 0:00:50]}  Qe6 {[%clk 0:00:03]} 44. Re4 {[%clk 0:00:48]}  Qf6 {[%clk 0:00:03]} 45. Rd4 {[%clk 0:00:43]}  Re8 {[%clk 0:00:02]} 46. Qd2 {[%clk 0:00:42]}  g6 {[%clk 0:00:03]} 47. Rd6 {[%clk 0:00:40]}  Qf5 {[%clk 0:00:02]} 48. Rd8 {[%clk 0:00:39]}  Rxd8 {[%clk 0:00:02]} 49. Qxd8+ {[%clk 0:00:38]}  Kh7 {[%clk 0:00:03]} 50. Qd2 {[%clk 0:00:35]}  Qe6 {[%clk 0:00:02]} 51. Qc2 {[%clk 0:00:34]}  Qc4 {[%clk 0:00:03]} 52. Kb1 {[%clk 0:00:31]}  h5 {[%clk 0:00:03]} 53. Kb2 {[%clk 0:00:30]}  h4 {[%clk 0:00:03]} 54. h3 {[%clk 0:00:31]}  Kh6 {[%clk 0:00:02]} 55. Qd2+ {[%clk 0:00:30]}  Kh5 {[%clk 0:00:02]} 56. Qc2 {[%clk 0:00:28]}  Kg5 {[%clk 0:00:02]} 57. Qd2+ {[%clk 0:00:28]}  Kf5 {[%clk 0:00:02]} 58. Qd7+ {[%clk 0:00:27]}  Kf4 {[%clk 0:00:02]} 59. Qd4+ {[%clk 0:00:24]}  Qxd4 {[%clk 0:00:02]} 60. cxd4 {[%clk 0:00:24]}  Kg3 {[%clk 0:00:01]} 61. d5 {[%clk 0:00:23]}  Kxg2 {[%clk 0:00:02]} 62. d6 {[%clk 0:00:23]}  Kxh3 {[%clk 0:00:03]} 63. d7 {[%clk 0:00:23]}  Kg2 {[%clk 0:00:04]} 64. d8=Q {[%clk 0:00:23]}  h3 {[%clk 0:00:05]} 65. Qg5+ {[%clk 0:00:22]}  Kxf3 {[%clk 0:00:05]} 66. Qd5+ {[%clk 0:00:19]}  Kg3 {[%clk 0:00:05]} 67. Qxb5 {[%clk 0:00:18]}  f5 {[%clk 0:00:05]} 68. Qf1 {[%clk 0:00:18]}  g5 {[%clk 0:00:05]} 69. Qg1+ {[%clk 0:00:18]}  Kh4 {[%clk 0:00:03]} 70. b5 {[%clk 0:00:17]}  g4 {[%clk 0:00:02]} 71. Qf2+ {[%clk 0:00:17]}  g3 {[%clk 0:00:01]} 72. Qf4+ {[%clk 0:00:17]}  Kh5 {[%clk 0:00:00]} 73. Qxg3 {[%clk 0:00:17]} 1-0


[Site "https://www.chess.com"]

[Event "Titled Tuesday Blitz August 22 Late 2023"]
[White "Beerdsen, Thomas"]
[Black "Nakamura, Hikaru"]
[WhiteFideId "1030108"]
[BlackFideId "2016192"]
[WhiteElo "2797"]
[BlackElo "3223"]
[Result "0-1"]
[Round "3"]
[TimeControl "180+1"]
[Date "2023.08.22"]
[WhiteClock "0:00:36"]
[BlackClock "0:01:18"]
[Board "1"]

1. e4 {[%clk 0:03:00]}  a6 {[%clk 0:02:59]} 2. d4 {[%clk 0:02:59]}  c6 {[%clk 0:03:00]} 3. f3 {[%clk 0:02:57]}  d5 {[%clk 0:02:59]} 4. Nc3 {[%clk 0:02:56]}  b5 {[%clk 0:02:53]} 5. a3 {[%clk 0:02:55]}  g6 {[%clk 0:02:51]} 6. Be3 {[%clk 0:02:54]}  Nf6 {[%clk 0:02:51]} 7. e5 {[%clk 0:02:52]}  Nfd7 {[%clk 0:02:51]} 8. f4 {[%clk 0:02:52]}  Nb6 {[%clk 0:02:52]} 9. Nf3 {[%clk 0:02:51]}  Nc4 {[%clk 0:02:49]} 10. Bxc4 {[%clk 0:02:50]}  bxc4 {[%clk 0:02:49]} 11. O-O {[%clk 0:02:48]}  Nd7 {[%clk 0:02:49]} 12. e6 {[%clk 0:02:48]}  fxe6 {[%clk 0:02:48]} 13. Ne5 {[%clk 0:02:42]}  c5 {[%clk 0:02:39]} 14. dxc5 {[%clk 0:02:34]}  Nf6 {[%clk 0:02:39]} 15. Bd4 {[%clk 0:02:23]}  Bg7 {[%clk 0:02:38]} 16. Qf3 {[%clk 0:02:12]}  Bb7 {[%clk 0:02:35]} 17. Qh3 {[%clk 0:02:08]}  Bc8 {[%clk 0:02:31]} 18. Rae1 {[%clk 0:02:07]}  O-O {[%clk 0:02:31]} 19. b3 {[%clk 0:01:54]}  cxb3 {[%clk 0:02:27]} 20. cxb3 {[%clk 0:01:55]}  Qc7 {[%clk 0:02:23]} 21. b4 {[%clk 0:01:54]}  Rb8 {[%clk 0:02:13]} 22. Qh4 {[%clk 0:01:45]}  Nh5 {[%clk 0:02:06]} 23. Re3 {[%clk 0:01:33]}  Bd7 {[%clk 0:01:55]} 24. Qxe7 {[%clk 0:01:26]}  Nxf4 {[%clk 0:01:32]} 25. Nxd7 {[%clk 0:01:11]}  Bxd4 {[%clk 0:01:23]} 26. Nf6+ {[%clk 0:01:11]}  Rxf6 {[%clk 0:01:22]} 27. Qxc7 {[%clk 0:01:12]}  Ne2+ {[%clk 0:01:18]} 28. Nxe2 {[%clk 0:01:04]}  Bxe3+ {[%clk 0:01:19]} 29. Rf2 {[%clk 0:01:04]}  Rxf2 {[%clk 0:01:19]} 30. Qe5 {[%clk 0:00:36]}  Rf3+ {[%clk 0:01:18]} 0-1


[Site "https://www.chess.com"]

[Event "Titled Tuesday Blitz August 22 Late 2023"]
[White "Troff, Kayden"]
[Black "Nihal Sarin"]
[WhiteFideId "2047896"]
[BlackFideId "25092340"]
[WhiteElo "2758"]
[BlackElo "3156"]
[Result "1/2-1/2"]
[Round "3"]
[TimeControl "180+1"]
[Date "2023.08.22"]
[WhiteClock "0:00:11"]
[BlackClock "0:00:12"]
[Board "3"]

1. d4 {[%clk 0:03:00]}  a6 {[%clk 0:02:59]} 2. Nf3 {[%clk 0:02:59]}  d5 {[%clk 0:02:57]} 3. Bf4 {[%clk 0:02:59]}  Nf6 {[%clk 0:02:55]} 4. e3 {[%clk 0:02:59]}  Bg4 {[%clk 0:02:49]} 5. Nbd2 {[%clk 0:02:57]}  e6 {[%clk 0:02:49]} 6. c3 {[%clk 0:02:57]}  c5 {[%clk 0:02:38]} 7. h3 {[%clk 0:02:49]}  Bxf3 {[%clk 0:02:37]} 8. Nxf3 {[%clk 0:02:48]}  Nc6 {[%clk 0:02:37]} 9. Ne5 {[%clk 0:02:39]}  Bd6 {[%clk 0:02:35]} 10. Qa4 {[%clk 0:02:35]}  O-O {[%clk 0:02:29]} 11. Nxc6 {[%clk 0:02:31]}  bxc6 {[%clk 0:02:30]} 12. dxc5 {[%clk 0:02:31]}  Bxf4 {[%clk 0:02:24]} 13. Qxf4 {[%clk 0:02:31]}  Ne4 {[%clk 0:02:25]} 14. Bd3 {[%clk 0:02:27]}  Nxc5 {[%clk 0:02:24]} 15. Bc2 {[%clk 0:02:27]}  a5 {[%clk 0:02:14]} 16. O-O {[%clk 0:02:25]}  Qb8 {[%clk 0:02:14]} 17. Qh4 {[%clk 0:02:20]}  h6 {[%clk 0:02:13]} 18. Rab1 {[%clk 0:02:20]}  Nd7 {[%clk 0:02:09]} 19. e4 {[%clk 0:02:18]}  Qd6 {[%clk 0:02:00]} 20. Rfe1 {[%clk 0:02:15]}  Rfb8 {[%clk 0:01:52]} 21. Re3 {[%clk 0:02:10]}  Rb7 {[%clk 0:01:49]} 22. Rg3 {[%clk 0:02:06]}  Rab8 {[%clk 0:01:50]} 23. b3 {[%clk 0:02:02]}  Nf6 {[%clk 0:01:39]} 24. e5 {[%clk 0:01:48]}  Qxe5 {[%clk 0:01:30]} 25. f4 {[%clk 0:01:47]}  Qd6 {[%clk 0:00:40]} 26. Qxf6 {[%clk 0:01:44]}  Qf8 {[%clk 0:00:40]} 27. Qxh6 {[%clk 0:01:43]}  g6 {[%clk 0:00:41]} 28. Qxf8+ {[%clk 0:01:26]}  Kxf8 {[%clk 0:00:42]} 29. Re3 {[%clk 0:01:23]}  Ke7 {[%clk 0:00:42]} 30. f5 {[%clk 0:01:21]}  gxf5 {[%clk 0:00:42]} 31. Bxf5 {[%clk 0:01:21]}  a4 {[%clk 0:00:42]} 32. Bc2 {[%clk 0:01:21]}  axb3 {[%clk 0:00:39]} 33. Rxb3 {[%clk 0:01:19]}  c5 {[%clk 0:00:40]} 34. c4 {[%clk 0:01:11]}  d4 {[%clk 0:00:35]} 35. Rf3 {[%clk 0:01:06]}  Rxb3 {[%clk 0:00:22]} 36. axb3 {[%clk 0:01:07]}  f5 {[%clk 0:00:22]} 37. g4 {[%clk 0:01:04]}  Rg8 {[%clk 0:00:22]} 38. Rg3 {[%clk 0:01:04]}  Kf6 {[%clk 0:00:18]} 39. Kg2 {[%clk 0:01:01]}  f4 {[%clk 0:00:11]} 40. g5+ {[%clk 0:00:55]}  Ke5 {[%clk 0:00:09]} 41. Rg4 {[%clk 0:00:53]}  d3 {[%clk 0:00:08]} 42. Bxd3 {[%clk 0:00:52]}  Kd4 {[%clk 0:00:09]} 43. Bh7 {[%clk 0:00:51]}  Rg7 {[%clk 0:00:09]} 44. g6 {[%clk 0:00:51]}  Ke3 {[%clk 0:00:08]} 45. h4 {[%clk 0:00:44]}  e5 {[%clk 0:00:08]} 46. h5 {[%clk 0:00:43]}  f3+ {[%clk 0:00:06]} 47. Kg1 {[%clk 0:00:43]}  Rd7 {[%clk 0:00:03]} 48. g7 {[%clk 0:00:41]}  f2+ {[%clk 0:00:01]} 49. Kg2 {[%clk 0:00:40]}  Rd1 {[%clk 0:00:02]} 50. Rg3+ {[%clk 0:00:40]}  Ke2 {[%clk 0:00:02]} 51. Bd3+ {[%clk 0:00:40]}  Rxd3 {[%clk 0:00:02]} 52. g8=Q {[%clk 0:00:31]}  f1=Q+ {[%clk 0:00:02]} 53. Kh2 {[%clk 0:00:32]}  Qf4 {[%clk 0:00:03]} 54. Qg4+ {[%clk 0:00:27]}  Qxg4 {[%clk 0:00:03]} 55. Rxg4 {[%clk 0:00:28]}  Rxb3 {[%clk 0:00:04]} 56. h6 {[%clk 0:00:28]}  Rb8 {[%clk 0:00:04]} 57. h7 {[%clk 0:00:27]}  Rh8 {[%clk 0:00:04]} 58. Rh4 {[%clk 0:00:28]}  Kf3 {[%clk 0:00:05]} 59. Kg1 {[%clk 0:00:28]}  e4 {[%clk 0:00:05]} 60. Kf1 {[%clk 0:00:28]}  Ke3 {[%clk 0:00:06]} 61. Ke1 {[%clk 0:00:26]}  Kd3 {[%clk 0:00:06]} 62. Kf2 {[%clk 0:00:26]}  Kxc4 {[%clk 0:00:07]} 63. Rxe4+ {[%clk 0:00:24]}  Kd3 {[%clk 0:00:08]} 64. Re7 {[%clk 0:00:24]}  c4 {[%clk 0:00:08]} 65. Kf3 {[%clk 0:00:24]}  c3 {[%clk 0:00:08]} 66. Rd7+ {[%clk 0:00:24]}  Kc4 {[%clk 0:00:09]} 67. Ke2 {[%clk 0:00:23]}  Kc5 {[%clk 0:00:08]} 68. Kd3 {[%clk 0:00:23]}  Kc6 {[%clk 0:00:08]} 69. Ra7 {[%clk 0:00:19]}  Kd6 {[%clk 0:00:09]} 70. Kxc3 {[%clk 0:00:20]}  Ke6 {[%clk 0:00:09]} 71. Kd4 {[%clk 0:00:20]}  Kf6 {[%clk 0:00:10]} 72. Ke4 {[%clk 0:00:14]}  Kg6 {[%clk 0:00:10]} 73. Kf4 {[%clk 0:00:13]}  Rxh7 {[%clk 0:00:11]} 74. Rxh7 {[%clk 0:00:11]}  Kxh7 {[%clk 0:00:12]} 1/2-1/2


[Site "https://www.chess.com"]

[Event "Titled Tuesday Blitz August 22 Late 2023"]
[White "Firouzja, Alireza"]
[Black "Leiva, Gianmarco"]
[WhiteFideId "12573981"]
[BlackFideId "3804399"]
[WhiteElo "3090"]
[BlackElo "2748"]
[Result "1-0"]
[Round "3"]
[TimeControl "180+1"]
[Date "2023.08.22"]
[WhiteClock "0:01:49"]
[BlackClock "0:00:00"]
[Board "5"]

1. e4 {[%clk 0:03:00]}  c5 {[%clk 0:02:59]} 2. Nf3 {[%clk 0:03:01]}  d6 {[%clk 0:02:59]} 3. Nc3 {[%clk 0:03:01]}  Nf6 {[%clk 0:02:59]} 4. g3 {[%clk 0:03:01]}  Nc6 {[%clk 0:02:50]} 5. Bg2 {[%clk 0:03:01]}  g6 {[%clk 0:02:47]} 6. d4 {[%clk 0:03:01]}  cxd4 {[%clk 0:02:47]} 7. Nxd4 {[%clk 0:03:02]}  Bd7 {[%clk 0:02:46]} 8. h3 {[%clk 0:03:00]}  Bg7 {[%clk 0:02:46]} 9. Be3 {[%clk 0:03:00]}  O-O {[%clk 0:02:45]} 10. O-O {[%clk 0:03:01]}  a6 {[%clk 0:02:42]} 11. a4 {[%clk 0:03:00]}  Rc8 {[%clk 0:02:39]} 12. Nce2 {[%clk 0:02:51]}  Na5 {[%clk 0:01:57]} 13. c3 {[%clk 0:02:28]}  Nc4 {[%clk 0:01:33]} 14. Bc1 {[%clk 0:02:27]}  e5 {[%clk 0:01:28]} 15. Nc2 {[%clk 0:02:25]}  Bc6 {[%clk 0:01:14]} 16. Qd3 {[%clk 0:02:24]}  b5 {[%clk 0:01:12]} 17. Nb4 {[%clk 0:02:22]}  Ba8 {[%clk 0:01:06]} 18. Nxa6 {[%clk 0:02:18]}  bxa4 {[%clk 0:01:02]} 19. Rxa4 {[%clk 0:02:18]}  Nb6 {[%clk 0:01:02]} 20. Ra1 {[%clk 0:02:17]}  d5 {[%clk 0:01:02]} 21. exd5 {[%clk 0:02:15]}  e4 {[%clk 0:01:02]} 22. Qd1 {[%clk 0:02:04]}  Qe7 {[%clk 0:00:45]} 23. d6 {[%clk 0:02:02]}  Qe6 {[%clk 0:00:40]} 24. Nc7 {[%clk 0:02:02]}  Qd7 {[%clk 0:00:32]} 25. Nxa8 {[%clk 0:01:59]}  Rxa8 {[%clk 0:00:33]} 26. Rxa8 {[%clk 0:01:59]}  Rxa8 {[%clk 0:00:34]} 27. b3 {[%clk 0:01:58]}  Rd8 {[%clk 0:00:28]} 28. c4 {[%clk 0:01:58]}  Qc6 {[%clk 0:00:26]} 29. Ba3 {[%clk 0:01:58]}  Qa8 {[%clk 0:00:23]} 30. Bc5 {[%clk 0:01:54]}  Nbd7 {[%clk 0:00:19]} 31. Be3 {[%clk 0:01:54]}  Ne5 {[%clk 0:00:12]} 32. Nc3 {[%clk 0:01:54]}  Qc6 {[%clk 0:00:08]} 33. c5 {[%clk 0:01:52]}  Rb8 {[%clk 0:00:05]} 34. Qc2 {[%clk 0:01:51]}  Ned7 {[%clk 0:00:02]} 35. Nxe4 {[%clk 0:01:51]}  Nxe4 {[%clk 0:00:02]} 36. Qxe4 {[%clk 0:01:49]}  Qxe4 {[%clk 0:00:00]} 37. Bxe4 {[%clk 0:01:49]} 1-0


[Site "https://www.chess.com"]

[Event "Titled Tuesday Blitz August 22 Late 2023"]
[White "Amburgy, Ryan"]
[Black "Duda, Jan-Krzysztof"]
[WhiteFideId "30924820"]
[BlackFideId "1170546"]
[WhiteElo "2747"]
[BlackElo "3086"]
[Result "0-1"]
[Round "3"]
[TimeControl "180+1"]
[Date "2023.08.22"]
[WhiteClock "0:00:01"]
[BlackClock "0:00:43"]
[Board "6"]

1. d4 {[%clk 0:03:00]}  b6 {[%clk 0:02:59]} 2. e4 {[%clk 0:02:59]}  Bb7 {[%clk 0:03:00]} 3. Nc3 {[%clk 0:02:59]}  g6 {[%clk 0:03:00]} 4. Nf3 {[%clk 0:02:51]}  Bg7 {[%clk 0:02:59]} 5. Bf4 {[%clk 0:02:49]}  d6 {[%clk 0:02:59]} 6. d5 {[%clk 0:02:41]}  Nf6 {[%clk 0:02:50]} 7. Be2 {[%clk 0:02:40]}  O-O {[%clk 0:02:42]} 8. O-O {[%clk 0:02:40]}  Nbd7 {[%clk 0:02:28]} 9. Re1 {[%clk 0:02:27]}  Nc5 {[%clk 0:02:15]} 10. Bc4 {[%clk 0:02:19]}  a6 {[%clk 0:02:14]} 11. a4 {[%clk 0:02:19]}  e5 {[%clk 0:02:03]} 12. Bg3 {[%clk 0:01:55]}  Bh6 {[%clk 0:01:52]} 13. Nd2 {[%clk 0:01:31]}  Nh5 {[%clk 0:01:51]} 14. Nf1 {[%clk 0:01:24]}  a5 {[%clk 0:01:42]} 15. b3 {[%clk 0:01:10]}  Bc8 {[%clk 0:01:38]} 16. Bb5 {[%clk 0:01:01]}  Nxg3 {[%clk 0:01:25]} 17. Nxg3 {[%clk 0:00:44]}  Bg5 {[%clk 0:01:18]} 18. Qe2 {[%clk 0:00:36]}  h5 {[%clk 0:01:15]} 19. h3 {[%clk 0:00:27]}  Kg7 {[%clk 0:01:11]} 20. Rf1 {[%clk 0:00:14]}  h4 {[%clk 0:01:05]} 21. Nh1 {[%clk 0:00:14]}  Bf4 {[%clk 0:01:04]} 22. Bd3 {[%clk 0:00:09]}  Qg5 {[%clk 0:00:56]} 23. Qf3 {[%clk 0:00:07]}  f5 {[%clk 0:00:51]} 24. Rfe1 {[%clk 0:00:05]}  Bd2 {[%clk 0:00:43]} 25. Nb5 {[%clk 0:00:01]} 0-1


[Site "https://www.chess.com"]

[Event "Titled Tuesday Blitz August 22 Late 2023"]
[White "Sarana, Alexey"]
[Black "Haydon, David L"]
[WhiteFideId "24133795"]
[BlackFideId "415405"]
[WhiteElo "3068"]
[BlackElo "2737"]
[Result "1-0"]
[Round "3"]
[TimeControl "180+1"]
[Date "2023.08.22"]
[WhiteClock "0:01:51"]
[BlackClock "0:00:52"]
[Board "7"]

1. d4 {[%clk 0:03:00]}  c6 {[%clk 0:02:52]} 2. c4 {[%clk 0:03:01]}  d5 {[%clk 0:02:52]} 3. Nf3 {[%clk 0:03:01]}  Nf6 {[%clk 0:02:52]} 4. Nc3 {[%clk 0:03:02]}  e6 {[%clk 0:02:50]} 5. e3 {[%clk 0:03:02]}  Bd6 {[%clk 0:02:51]} 6. Qc2 {[%clk 0:03:02]}  Nbd7 {[%clk 0:02:51]} 7. Be2 {[%clk 0:03:02]}  O-O {[%clk 0:02:51]} 8. O-O {[%clk 0:03:03]}  Qe7 {[%clk 0:02:50]} 9. e4 {[%clk 0:02:58]}  dxe4 {[%clk 0:02:49]} 10. Nxe4 {[%clk 0:02:58]}  Nxe4 {[%clk 0:02:49]} 11. Qxe4 {[%clk 0:02:59]}  e5 {[%clk 0:02:48]} 12. c5 {[%clk 0:02:52]}  Bc7 {[%clk 0:02:46]} 13. Bg5 {[%clk 0:02:50]}  f6 {[%clk 0:02:34]} 14. Bd3 {[%clk 0:02:24]}  g6 {[%clk 0:02:30]} 15. Bh6 {[%clk 0:02:24]}  Re8 {[%clk 0:02:27]} 16. Bc4+ {[%clk 0:02:19]}  Kh8 {[%clk 0:02:24]} 17. Rfe1 {[%clk 0:02:14]}  Nf8 {[%clk 0:01:47]} 18. dxe5 {[%clk 0:02:10]}  fxe5 {[%clk 0:01:46]} 19. Bg5 {[%clk 0:01:58]}  Qg7 {[%clk 0:01:15]} 20. Qh4 {[%clk 0:01:58]}  Nd7 {[%clk 0:01:15]} 21. Rad1 {[%clk 0:01:55]}  h5 {[%clk 0:01:10]} 22. Rxd7 {[%clk 0:01:51]}  Qxd7 {[%clk 0:01:04]} 23. Bf6+ {[%clk 0:01:51]}  Kh7 {[%clk 0:01:04]} 24. Ng5+ {[%clk 0:01:51]}  Kh6 {[%clk 0:01:04]} 25. Nf7+ {[%clk 0:01:51]}  Kh7 {[%clk 0:00:52]} 26. Qg5 {[%clk 0:01:51]} 1-0


[Site "https://www.chess.com"]

[Event "Titled Tuesday Blitz August 22 Late 2023"]
[White "Bluebaum, Matthias"]
[Black "Liyanage, Ranindu Dilshan"]
[WhiteFideId "24651516"]
[BlackFideId "9915834"]
[WhiteElo "3031"]
[BlackElo "2730"]
[Result "1-0"]
[Round "3"]
[TimeControl "180+1"]
[Date "2023.08.22"]
[WhiteClock "0:00:10"]
[BlackClock "0:00:00"]
[Board "8"]

1. d4 {[%clk 0:03:00]}  d5 {[%clk 0:03:00]} 2. c4 {[%clk 0:03:01]}  e6 {[%clk 0:03:00]} 3. Nc3 {[%clk 0:03:01]}  Nf6 {[%clk 0:03:00]} 4. cxd5 {[%clk 0:03:02]}  exd5 {[%clk 0:02:59]} 5. Bg5 {[%clk 0:03:03]}  Bb4 {[%clk 0:02:59]} 6. e3 {[%clk 0:03:02]}  h6 {[%clk 0:02:59]} 7. Bf4 {[%clk 0:03:03]}  O-O {[%clk 0:02:57]} 8. Bd3 {[%clk 0:03:02]}  c5 {[%clk 0:02:56]} 9. Ne2 {[%clk 0:03:02]}  Nc6 {[%clk 0:02:50]} 10. a3 {[%clk 0:03:02]}  cxd4 {[%clk 0:02:46]} 11. axb4 {[%clk 0:02:59]}  dxc3 {[%clk 0:02:45]} 12. bxc3 {[%clk 0:03:00]}  Qe7 {[%clk 0:02:42]} 13. O-O {[%clk 0:02:59]}  Ne5 {[%clk 0:02:42]} 14. Nd4 {[%clk 0:02:55]}  Bd7 {[%clk 0:02:27]} 15. Be2 {[%clk 0:02:41]}  Rfc8 {[%clk 0:02:24]} 16. Qb3 {[%clk 0:02:40]}  Nc4 {[%clk 0:02:16]} 17. Rfd1 {[%clk 0:02:40]}  Ne4 {[%clk 0:02:15]} 18. Nf3 {[%clk 0:02:29]}  Be6 {[%clk 0:01:59]} 19. Qc2 {[%clk 0:02:19]}  Nb6 {[%clk 0:01:51]} 20. Be5 {[%clk 0:02:16]}  Qxb4 {[%clk 0:01:48]} 21. Rdb1 {[%clk 0:02:01]}  Qe7 {[%clk 0:01:40]} 22. Bd4 {[%clk 0:02:01]}  Bf5 {[%clk 0:01:19]} 23. Bd3 {[%clk 0:02:01]}  Nc4 {[%clk 0:01:09]} 24. Rb5 {[%clk 0:01:56]}  Na3 {[%clk 0:00:47]} 25. Rxa3 {[%clk 0:01:57]}  Qxa3 {[%clk 0:00:48]} 26. h3 {[%clk 0:01:57]}  Be6 {[%clk 0:00:34]} 27. Bxe4 {[%clk 0:01:55]}  dxe4 {[%clk 0:00:34]} 28. Qxe4 {[%clk 0:01:56]}  b6 {[%clk 0:00:31]} 29. Ng5 {[%clk 0:01:51]}  hxg5 {[%clk 0:00:20]} 30. Rxg5 {[%clk 0:01:52]}  Qf8 {[%clk 0:00:20]} 31. Rh5 {[%clk 0:01:33]}  Qd6 {[%clk 0:00:19]} 32. Qh4 {[%clk 0:01:20]}  f6 {[%clk 0:00:19]} 33. Bxf6 {[%clk 0:01:21]}  Kf7 {[%clk 0:00:13]} 34. Be5 {[%clk 0:01:21]}  Qd1+ {[%clk 0:00:12]} 35. Kh2 {[%clk 0:01:21]}  Rc4 {[%clk 0:00:12]} 36. Qg5 {[%clk 0:01:18]}  Rg8 {[%clk 0:00:10]} 37. Rh7 {[%clk 0:01:19]}  Qd5 {[%clk 0:00:07]} 38. f3 {[%clk 0:00:56]}  Rc5 {[%clk 0:00:06]} 39. f4 {[%clk 0:00:56]}  Rc4 {[%clk 0:00:06]} 40. h4 {[%clk 0:00:49]}  Re4 {[%clk 0:00:05]} 41. Rxg7+ {[%clk 0:00:42]}  Rxg7 {[%clk 0:00:05]} 42. Qxg7+ {[%clk 0:00:43]}  Ke8 {[%clk 0:00:06]} 43. Bf6 {[%clk 0:00:44]}  Bf7 {[%clk 0:00:03]} 44. Qh8+ {[%clk 0:00:36]}  Kd7 {[%clk 0:00:03]} 45. Qb8 {[%clk 0:00:37]}  Ra4 {[%clk 0:00:01]} 46. c4 {[%clk 0:00:35]}  Qxc4 {[%clk 0:00:01]} 47. Qd8+ {[%clk 0:00:35]}  Kc6 {[%clk 0:00:02]} 48. Bd4 {[%clk 0:00:32]}  Kb5 {[%clk 0:00:03]} 49. h5 {[%clk 0:00:31]}  Ra2 {[%clk 0:00:02]} 50. h6 {[%clk 0:00:21]}  Bd5 {[%clk 0:00:02]} 51. Qe8+ {[%clk 0:00:19]}  Ka6 {[%clk 0:00:02]} 52. e4 {[%clk 0:00:15]}  Qxd4 {[%clk 0:00:02]} 53. h7 {[%clk 0:00:16]}  Qxe4 {[%clk 0:00:02]} 54. Qxe4 {[%clk 0:00:15]}  Bxe4 {[%clk 0:00:03]} 55. h8=Q {[%clk 0:00:16]}  Rxg2+ {[%clk 0:00:04]} 56. Kh3 {[%clk 0:00:17]}  Bc6 {[%clk 0:00:04]} 57. f5 {[%clk 0:00:14]}  Rf2 {[%clk 0:00:02]} 58. Kg4 {[%clk 0:00:14]}  Bd7 {[%clk 0:00:01]} 59. Qa1+ {[%clk 0:00:14]}  Kb7 {[%clk 0:00:01]} 60. Qd4 {[%clk 0:00:12]}  Bxf5+ {[%clk 0:00:01]} 61. Kg5 {[%clk 0:00:13]}  Rc2 {[%clk 0:00:01]} 62. Kxf5 {[%clk 0:00:09]}  Rc5+ {[%clk 0:00:02]} 63. Ke6 {[%clk 0:00:10]}  a5 {[%clk 0:00:02]} 64. Qe4+ {[%clk 0:00:08]}  Ka6 {[%clk 0:00:02]} 65. Kd6 {[%clk 0:00:09]}  Kb5 {[%clk 0:00:02]} 66. Qd3+ {[%clk 0:00:09]}  Kb4 {[%clk 0:00:03]} 67. Qd2+ {[%clk 0:00:09]}  Kb5 {[%clk 0:00:03]} 68. Qd3+ {[%clk 0:00:10]}  Kb4 {[%clk 0:00:04]} 69. Qb1+ {[%clk 0:00:11]}  Kc4 {[%clk 0:00:01]} 70. Qxb6 {[%clk 0:00:11]}  Rd5+ {[%clk 0:00:02]} 71. Kc6 {[%clk 0:00:11]}  Rd4 {[%clk 0:00:02]} 72. Qxa5 {[%clk 0:00:11]}  Kd3 {[%clk 0:00:02]} 73. Qa3+ {[%clk 0:00:10]}  Ke4 {[%clk 0:00:03]} 74. Qc1 {[%clk 0:00:07]}  Kd3 {[%clk 0:00:02]} 75. Kc5 {[%clk 0:00:06]}  Re4 {[%clk 0:00:02]} 76. Qd1+ {[%clk 0:00:05]}  Ke3 {[%clk 0:00:02]} 77. Kd5 {[%clk 0:00:06]}  Rf4 {[%clk 0:00:03]} 78. Qe1+ {[%clk 0:00:07]}  Kf3 {[%clk 0:00:03]} 79. Ke5 {[%clk 0:00:08]}  Rg4 {[%clk 0:00:03]} 80. Qf1+ {[%clk 0:00:08]}  Kg3 {[%clk 0:00:03]} 81. Kf5 {[%clk 0:00:09]}  Rh4 {[%clk 0:00:02]} 82. Qg1+ {[%clk 0:00:09]}  Kh3 {[%clk 0:00:00]} 83. Kg5 {[%clk 0:00:10]} 1-0


[Site "https://www.chess.com"]